bitfinex/quotes_ETHUSD_20250804
["timestamp","ask_amount","ask_price","bid_price","bid_amount"]
[1754340468785,1.1371,3701.9,3701.8,4.216]
[1754340469099,1.1371,3701.9,3701.8,6.91738851]
[1754340469459,1.1371,3701.9,3701.2,0.1344]
[1754340469655,1.1371,3701.9,3701.7,2.70146149]
[1754340469656,1.0027,3701.8,3701.7,2.70146149]
[1754340469855,1.0027,3701.8,3701.7,6.91746149]
[1754340471666,1.0027,3701.8,3701.6,0.001]
[1754340471968,1.0027,3701.7,3701.6,0.001]
[1754340475303,3.70416149,3701.7,3701.6,0.001]
[1754340475682,4.34471032,3701.7,3701.6,0.001]
[1754340477498,1.64324883,3701.7,3701.6,0.001]
[1754340477804,4.34471032,3701.7,3701.6,0.001]
[1754340478215,1.64324883,3701.7,3701.6,0.001]
[1754340478417,1.0027,3701.7,3701.6,0.001]
[1754340478615,3.70416149,3701.7,3701.6,0.001]
[1754340478914,1.0027,3701.7,3701.6,0.001]
[1754340479077,3.70416149,3701.7,3701.6,0.001]
[1754340479495,1.0027,3701.7,3701.6,0.001]
[1754340481117,4.07456319,3701.7,3701.6,0.001]
[1754340482220,1.3731017,3701.7,3701.6,0.001]
[1754340484221,4.64830001,3702.1,3701.6,0.001]
[1754340484436,0.5694,3701.7,3701.6,0.001]
[1754340484923,4.21500001,3702.1,3701.6,2.70253425]
[1754340485124,0.5694,3702.0,3701.6,2.70253425]
[1754340485320,0.5694,3702.0,3701.6,0.001]
[1754340485486,0.4333,3701.9,3701.6,0.001]
[1754340486305,1.0027,3701.8,3701.6,0.001]
[1754340486685,0.4333,3701.8,3701.6,0.001]
[1754340486887,0.5694,3701.7,3701.6,2.70253447]
[1754340487387,4.78440001,3702.1,3701.6,2.70250518]
[1754340487624,1.0027,3702.0,3701.6,2.70250518]
[1754340487824,0.4333,3702.0,3701.6,2.70250518]
[1754340488009,0.5694,3701.9,3701.6,2.70250518]
[1754340488415,4.21500001,3702.1,3701.6,0.001]
[1754340488416,1.0027,3701.8,3701.6,0.001]
[1754340488726,1.52447,3701.8,3701.6,0.001]
[1754340488909,0.52177,3701.8,3701.6,0.001]
[1754340489112,1.0027,3701.7,3701.6,0.001]
[1754340492923,3.70416149,3701.7,3701.6,0.001]
[1754340493131,6.73792975,3701.7,3701.6,0.001]
[1754340493316,7.64809236,3701.7,3701.6,0.001]
[1754340493624,11.86109236,3701.7,3701.6,0.001]
[1754340496156,11.42779236,3701.7,3701.6,0.001]
[1754340496362,11.86109236,3701.7,3701.6,0.001]
[1754340502747,23.46175873,3701.7,3701.6,0.001]
[1754340504617,12.41109236,3701.7,3701.6,0.001]
[1754340506386,42.41109236,3701.7,3701.6,0.001]
[1754340506582,41.40839236,3701.7,3701.6,0.001]
[1754340506882,12.39169236,3701.7,3701.6,0.001]
[1754340509661,42.39169236,3701.7,3701.6,0.001]
[1754340510670,10.85839236,3701.7,3701.6,0.001]
[1754340510872,3.0,3701.7,3701.6,0.001]
[1754340511072,7.211,3701.7,3701.6,0.3972]
[1754340511480,4.211,3701.7,3701.6,0.001]
[1754340511686,7.211,3701.7,3701.6,0.001]
[1754340513286,1e-08,3702.1,3701.6,0.8687]
[1754340513480,4.21,3702.0,3701.6,2.70253447]
[1754340513809,3.0,3701.9,3701.7,0.8677]
[1754340513974,4.21,3701.8,3701.7,1.4948894]
[1754340514172,1e-08,3702.1,3701.9,2.70131241]
[1754340514502,1e-08,3702.1,3701.6,0.001]
[1754340514503,1e-08,3702.1,3702.0,2.70124257]
[1754340514669,4.21000001,3702.1,3702.0,2.70124257]
[1754340514870,4.21000001,3702.1,3702.0,3.56894257]
[1754340515083,4.21000001,3702.1,3702.0,4.19596983]
[1754340516510,1e-08,3702.1,3702.0,4.19596983]
[1754340518416,1e-08,3702.1,3701.6,0.8687]
[1754340518581,1e-08,3702.1,3702.0,2.70124257]
[1754340519832,1e-08,3702.1,3702.0,3.56894257]
[1754340520038,1e-08,3702.1,3702.0,2.70124257]
[1754340520997,1e-08,3702.1,3701.9,2.70129704]
[1754340521295,0.1344,3701.8,3701.6,0.001]
[1754340521525,4.208,3701.7,3701.6,2.70253447]
[1754340522111,4.208,3701.7,3701.6,0.001]
[1754340522453,4.208,3701.7,3701.6,2.70253447]
[1754340522746,4.208,3701.7,3701.6,0.001]
[1754340522905,5.1913,3701.7,3701.6,0.001]
[1754340523244,5.98056647,3701.7,3701.6,0.001]
[1754340523543,5.1913,3701.7,3701.6,0.001]
[1754340524113,7.89276149,3701.7,3701.6,0.001]
[1754340529029,11.44276149,3701.7,3701.6,0.001]
[1754340530354,22.4898934,3701.7,3701.6,0.001]
[1754340530556,25.00901624,3701.7,3701.6,0.001]
[1754340530716,13.96188433,3701.7,3701.6,0.001]
[1754340531854,11.44276149,3701.7,3701.6,0.001]
[1754340532644,6.25146149,3701.7,3701.6,0.001]
[1754340532951,9.90746149,3701.7,3701.6,0.001]
[1754340533153,10.89846149,3701.7,3701.6,0.001]
[1754340536667,10.43006149,3701.7,3701.6,0.001]
[1754340537766,3.0,3701.7,3701.6,0.001]
[1754340537973,9.90646149,3701.7,3701.6,0.001]
[1754340539861,12.25734017,3701.7,3701.6,0.001]
[1754340542963,12.80734017,3701.7,3701.6,0.001]
[1754340547772,6.25175343,3701.3,3701.2,0.001]
[1754340548111,10.45575343,3701.3,3701.2,0.001]
[1754340548309,13.18441529,3701.3,3701.2,0.001]
[1754340548474,14.17541529,3701.3,3701.2,0.001]
[1754340548917,44.17541529,3701.3,3701.2,0.001]
[1754340549915,44.30793659,3701.3,3701.2,0.001]
[1754340550123,9.97141529,3701.3,3701.2,0.001]
[1754340550424,11.44575343,3701.3,3701.2,0.001]
[1754340552712,22.49882648,3701.3,3701.2,0.001]
[1754340552890,22.49882648,3701.3,3701.2,1e-08]
[1754340553298,52.49882648,3701.3,3701.2,1e-08]
[1754340554929,2.70196203,3701.1,3700.8,0.001]
[1754340555092,17.30511849,3700.9,3700.8,0.001]
[1754340555498,18.29611849,3700.9,3700.8,0.001]
[1754340555699,17.30511849,3700.9,3700.8,0.001]
[1754340555901,6.25204544,3700.9,3700.8,0.001]
[1754340556126,7.89277237,3700.9,3700.8,0.001]
[1754340556325,8.41537237,3700.9,3700.8,0.001]
[1754340556643,19.93434542,3700.9,3700.8,0.001]
[1754340557635,0.55,3700.7,3700.0,0.3776]
[1754340557837,2.70262965,3700.1,3700.0,0.3776]
[1754340558014,6.90462965,3700.1,3699.9,0.3573]
[1754340558400,0.1344,3699.9,3699.7,0.3776]
[1754340558632,0.1344,3699.7,3699.5,2.70506638]
[1754340558842,4.202,3699.6,3699.5,2.70506638]
[1754340559155,6.90499491,3699.6,3699.5,0.002]
[1754340559310,7.32519491,3699.6,3699.5,0.002]
[1754340559496,8.35209491,3699.6,3699.5,0.002]
[1754340559999,7.88619491,3699.6,3699.5,0.002]
[1754340560836,7.32519491,3699.6,3699.5,0.002]
[1754340561037,8.90209491,3699.6,3699.5,0.002]
[1754340561250,2.70328719,3699.2,3698.7,0.001]
[1754340561450,7.71524292,3699.2,3698.8,0.3776]
[1754340561666,6.90428719,3699.2,3698.7,0.001]
[1754340562162,6.90428719,3699.2,3698.7,0.7571]
[1754340562959,3.0,3700.3,3699.1,0.7374]
[1754340563138,3.0,3699.9,3699.2,0.7364]
[1754340563338,4.201,3699.8,3699.2,0.3785]
[1754340563514,4.201,3699.7,3699.3,3.06110179]
[1754340563716,4.201,3699.7,3699.4,0.7364]
[1754340564226,4.201,3699.7,3699.4,0.3785]
[1754340564443,4.201,3699.7,3699.4,0.7364]
[1754340564742,4.201,3699.6,3699.5,0.3579]
[1754340565049,4.201,3699.6,3699.4,0.3785]
[1754340565412,4.201,3699.6,3699.4,3.08163411]
[1754340565660,2.7026568,3700.1,3699.5,0.7364]
[1754340565867,3.0,3699.9,3699.1,0.3589]
[1754340566046,3.0,3699.9,3699.1,2.70434562]
[1754340566047,2.70293174,3699.7,3699.1,2.70434562]
[1754340566246,4.201,3699.6,3699.1,0.3589]
[1754340566562,4.201,3699.6,3699.4,2.70308559]
[1754340566745,4.201,3699.6,3699.2,3.43968719]
[1754340566746,4.201,3699.6,3699.2,2.70327225]
[1754340566914,4.201,3699.6,3699.2,0.3579]
[1754340567261,4.201,3699.6,3699.3,3.43960348]
[1754340567458,4.201,3699.6,3699.3,3.08170348]
[1754340567665,4.201,3699.6,3699.4,3.43951801]
[1754340567843,4.201,3699.6,3699.2,2.70325674]
[1754340568366,4.201,3699.6,3699.3,3.43961323]
[1754340568533,4.201,3699.6,3699.3,0.7364]
[1754340569119,4.201,3699.6,3699.1,2.70433201]
[1754340569315,4.201,3699.6,3699.1,3.06223201]
[1754340569549,4.201,3699.6,3699.2,2.70328229]
[1754340569949,4.201,3699.6,3699.3,0.3579]
[1754340570526,4.201,3699.6,3699.4,2.70313939]
[1754340570754,4.201,3699.6,3699.5,3.43946798]
[1754340571151,1.93142668,3700.2,3699.5,0.7364]
[1754340571326,1.93142668,3700.2,3699.1,2.7043241]
[1754340571327,4.2,3700.1,3699.6,0.7364]
[1754340571532,4.2,3700.1,3700.0,2.7027027]
[1754340571930,1.93142668,3700.2,3700.1,2.70262965]
[1754340572134,6.13142668,3700.2,3700.1,2.70262965]
[1754340572455,6.13142668,3700.2,3700.1,3.43252965]
[1754340572776,2.7027235,3700.0,3699.3,0.1344]
[1754340573061,4.2,3699.9,3699.4,2.7031371]
[1754340573257,4.2,3699.9,3699.1,0.3524]
[1754340573258,0.1344,3699.4,3699.1,0.3524]
[1754340573443,4.2,3699.4,3699.1,0.001]
[1754340573647,4.2,3699.4,3699.1,0.3524]
[1754340573847,4.2,3699.4,3699.1,0.001]
[1754340574046,4.2,3699.4,3699.1,2.7043462]
[1754340574249,0.561,3699.3,3699.1,0.001]
[1754340574630,4.2,3699.4,3699.1,0.001]
[1754340575029,4.761,3699.4,3699.1,2.70435906]
[1754340575230,4.761,3699.4,3699.1,0.001]
[1754340576623,0.561,3699.3,3699.1,0.001]
[1754340576823,1.0269,3699.3,3699.1,0.001]
[1754340577029,0.561,3699.2,3699.1,0.001]
[1754340577664,1.0269,3699.2,3699.1,0.001]
[1754340578428,4.52319211,3699.2,3699.1,0.001]
[1754340578677,4.55698319,3699.2,3699.1,0.001]
[1754340579367,8.75598319,3699.2,3699.1,0.001]
[1754340579673,8.72219211,3699.2,3699.1,0.001]
[1754340581346,0.79300492,3699.2,3699.1,0.001]
[1754340581646,0.561,3699.7,3699.1,0.001]
[1754340581848,3.0,3699.5,3699.1,0.3524]
[1754340582048,4.198,3699.4,3699.1,3.08281078]
[1754340582251,4.198,3699.3,3699.2,3.05468719]
[1754340582494,5.70264906,3700.1,3699.4,2.70313373]
[1754340582780,3.0,3699.9,3699.4,2.70313373]
[1754340582987,0.1344,3699.4,3699.3,2.70318901]
[1754340583139,3.0,3699.9,3699.4,2.70313169]
[1754340583338,4.198,3699.8,3699.4,2.70313169]
[1754340583564,5.70273037,3700.0,3699.4,2.70313169]
[1754340583777,4.198,3699.9,3699.5,2.70301439]
[1754340584349,0.1344,3699.5,3699.4,2.70314104]
[1754340584554,4.198,3699.5,3699.4,2.70314104]
[1754340584768,0.1344,3699.4,3699.3,2.70321412]
[1754340585681,0.1344,3699.4,3699.2,2.70326635]
[1754340586064,0.1344,3699.4,3699.1,0.3524]
[1754340586267,0.1344,3699.4,3699.3,2.70321412]
[1754340586466,4.198,3699.5,3699.4,2.70314104]
[1754340586788,0.1344,3699.2,3699.1,2.70436027]
[1754340587186,0.1344,3699.2,3699.1,0.001]
[1754340587411,4.3314,3699.2,3699.1,2.70436027]
[1754340587685,4.3314,3699.2,3699.1,3.43426027]
[1754340588665,0.5229,3700.0,3699.5,2.70303233]
[1754340588869,3.0,3700.3,3699.5,0.3514]
[1754340589079,4.197,3700.2,3700.0,2.70265186]
[1754340589281,0.001,3700.7,3700.2,2.70255559]
[1754340589456,4.197,3700.6,3700.3,2.70247266]
[1754340589889,0.1344,3700.3,3700.2,2.70254392]
[1754340590081,0.1344,3700.0,3699.9,2.70277575]
[1754340590979,0.1344,3700.0,3699.9,3.43267575]
[1754340591180,0.1344,3700.0,3699.9,2.70277575]
[1754340593160,0.5708,3700.0,3699.2,4.196]
[1754340593359,0.001,3700.7,3699.8,2.70283841]
[1754340593360,3.13885362,3700.4,3699.8,2.70283841]
[1754340593692,5.18908104,3700.3,3699.1,0.001]
[1754340593860,2.70276265,3700.0,3699.3,2.70315243]
[1754340594066,3.79588646,3700.0,3699.4,2.70312993]
[1754340594260,0.9593,3699.9,3699.1,0.001]
[1754340594461,6.89789466,3699.8,3699.1,0.001]
[1754340594687,7.85719466,3699.8,3699.1,0.001]
[1754340594917,0.5229,3699.7,3699.1,2.70431819]
[1754340595487,4.28182828,3699.7,3699.1,0.001]
[1754340595695,0.4364,3699.6,3699.1,0.001]
[1754340595993,0.4364,3699.6,3699.3,2.70320994]
[1754340596300,4.195,3699.8,3699.4,2.70310084]
[1754340596468,4.195,3699.8,3699.5,2.70306444]
[1754340596813,2.70233752,3700.5,3699.4,2.70314104]
[1754340597110,7.42036633,3700.4,3699.8,2.70279425]
[1754340597470,4.7179,3700.4,3699.8,2.70279425]
[1754340597668,7.41877101,3700.4,3699.8,2.70279425]
[1754340597866,0.52135841,3700.4,3700.1,2.70262343]
[1754340598089,4.195,3700.3,3699.7,0.3404]
[1754340598270,4.195,3700.3,3700.1,2.70258385]
[1754340598594,0.001,3700.7,3700.2,2.70255661]
[1754340598895,4.195,3700.6,3700.2,2.70255661]
[1754340599196,4.195,3700.6,3700.3,2.70248293]
[1754340599504,4.195,3700.6,3700.1,2.70260073]
[1754340599696,0.1344,3700.0,3699.9,2.70277575]
[1754340599998,0.001,3700.7,3700.6,2.70226449]
[1754340601502,0.1354,3700.7,3700.6,3.42116449]
[1754340603179,0.1354,3700.7,3700.6,2.70226449]
[1754340605719,1.0947,3700.7,3699.2,0.3404]
[1754340606018,0.1344,3700.4,3700.1,2.70261521]
[1754340606225,4.192,3700.3,3700.1,2.70261521]
[1754340606381,0.1344,3700.1,3700.0,2.70267485]
[1754340606586,0.1344,3700.1,3699.4,5.70314104]
[1754340606587,0.9593,3700.2,3700.1,2.70262965]
[1754340607726,0.1344,3700.1,3699.4,3.0]
[1754340607885,0.9593,3700.2,3699.9,2.70276297]
[1754340608087,0.9593,3700.1,3700.0,2.7027027]
[1754340608321,0.5229,3700.1,3700.0,2.7027027]
[1754340608505,4.192,3700.3,3700.2,2.70255661]
[1754340608826,0.1344,3700.0,3699.9,2.70277575]
[1754340609895,1.0937,3700.0,3699.8,2.70283141]
[1754340610080,0.1344,3700.0,3699.9,2.70277575]
[1754340610516,4.192,3700.3,3699.9,2.70277575]
[1754340610722,0.4364,3700.0,3699.9,2.70277575]
[1754340611017,0.1344,3699.9,3699.8,2.70282388]
[1754340611226,0.9593,3699.9,3699.6,2.70299276]
[1754340611386,0.1344,3699.7,3699.6,2.70299276]
[1754340611587,0.1344,3699.7,3699.6,3.27783321]
[1754340611782,0.1344,3699.7,3699.6,3.61823321]
[1754340612188,0.1344,3699.7,3699.6,3.27783321]
[1754340612989,0.001,3700.7,3699.6,8.48474045]
[1754340613190,0.1344,3700.1,3700.0,2.7027027]
[1754340613431,4.191,3700.6,3700.5,2.70233752]
[1754340613594,4.7139,3700.6,3700.5,2.70233752]
[1754340614501,0.5229,3700.6,3700.5,2.70233752]
[1754340615590,0.9593,3700.6,3700.5,2.70233752]
[1754340618419,5.1493,3700.6,3700.5,2.70233752]
[1754340618926,0.1344,3700.5,3700.3,2.70246164]
[1754340619096,0.1344,3700.3,3699.5,3.0]
[1754340619422,0.1344,3699.8,3699.7,2.70292185]
[1754340619591,0.1344,3699.8,3699.7,3.42182185]
[1754340621730,0.1344,3699.8,3699.7,3.04332185]
[1754340621926,0.1344,3699.8,3699.7,2.70292185]
[1754340623304,0.6565,3699.8,3699.7,2.70292185]
[1754340623500,1.1122,3699.8,3699.7,2.70292185]
[1754340625419,1.1122,3699.8,3699.6,2.70298628]
[1754340625639,0.9778,3699.7,3699.6,2.70298628]
[1754340626439,0.1344,3699.6,3699.3,0.002]
[1754340626619,0.9778,3699.6,3699.3,2.70520704]
[1754340626814,0.1344,3699.4,3699.3,2.70520704]
[1754340627217,1.1122,3699.4,3699.3,2.70520704]
[1754340628813,1.1122,3699.4,3699.3,0.002]
[1754340629545,5.68509982,3699.4,3699.3,0.002]
[1754340629924,5.09499982,3699.4,3699.3,0.002]
[1754340630128,4.7101,3699.4,3699.3,2.70521412]
[1754340631338,4.188,3699.4,3699.3,2.70521412]
[1754340631539,0.5221,3700.0,3699.3,0.002]
[1754340631747,4.188,3699.9,3699.4,2.70307643]
[1754340632048,0.9778,3699.8,3699.3,2.70520707]
[1754340632218,0.9778,3699.8,3699.7,2.70292185]
[1754340632423,4.187,3700.5,3699.3,0.02251424]
[1754340632643,0.1344,3699.8,3699.7,2.70292185]
[1754340632860,0.1344,3699.8,3699.7,4.43471201]
[1754340633038,4.187,3700.5,3700.4,2.70241055]
[1754340633861,4.7091,3700.5,3700.4,2.70241055]
[1754340634557,0.1344,3700.4,3699.5,2.70305014]
[1754340634861,0.1344,3700.2,3700.1,2.70256529]
[1754340635055,4.187,3700.5,3700.1,2.70256529]
[1754340635263,0.9778,3700.2,3700.1,2.70256529]
[1754340636245,4.187,3700.5,3700.4,2.70241055]
[1754340636445,5.1648,3700.5,3700.4,2.70241055]
[1754340636773,4.187,3700.5,3699.9,2.70277575]
[1754340636975,4.187,3700.5,3700.4,2.70241055]
[1754340637772,0.001,3700.7,3700.6,2.70226449]
[1754340637951,4.7091,3700.7,3700.6,2.70226449]
[1754340639029,4.7091,3700.7,3699.9,2.70274051]
[1754340639230,4.7091,3700.7,3700.3,2.70248358]
[1754340639231,0.1344,3700.4,3700.3,2.70248358]
[1754340639739,0.6565,3700.4,3700.3,2.70248358]
[1754340640039,1.1122,3700.4,3700.3,2.70248358]
[1754340640559,0.1344,3700.4,3700.3,2.70248358]
[1754340645268,0.6565,3700.4,3700.3,2.70248358]
[1754340645669,1.1122,3700.4,3700.3,2.70248358]
[1754340646031,0.6565,3700.4,3700.3,2.70248358]
[1754340647233,1.0926,3700.4,3700.3,2.70248358]
[1754340648570,0.6565,3700.4,3700.3,2.70248358]
[1754340648959,0.1344,3700.4,3700.3,2.70248358]
[1754340650030,0.6461,3700.4,3700.3,2.70248358]
[1754340651878,0.1344,3700.4,3700.3,2.70248358]
[1754340655354,0.6461,3700.4,3700.3,2.70248358]
[1754340656140,0.1344,3700.4,3700.3,2.70248358]
[1754340658079,0.6461,3700.4,3700.3,2.70248358]
[1754340659878,0.1344,3700.4,3700.3,2.70248358]
[1754340661099,1e-08,3700.8,3700.7,2.70219147]
[1754340661283,1e-08,3700.8,3700.7,20.95241555]
[1754340661599,1e-08,3701.0,3700.9,5.70204544]
[1754340661890,1e-08,3701.0,3700.9,6.25204544]
[1754340662093,1e-08,3701.3,3701.2,16.75055674]
[1754340662258,1e-08,3701.4,3701.3,5.70175343]
[1754340662674,1e-08,3701.4,3701.3,6.38385343]
[1754340663290,1e-08,3701.4,3701.3,5.70175343]
[1754340663493,0.51170001,3701.4,3701.3,9.88175343]
[1754340663687,1e-08,3701.4,3701.3,9.88175343]
[1754340663985,1e-08,3701.4,3701.3,11.05737379]
[1754340664776,0.51170001,3701.4,3701.3,11.05737379]
[1754340664973,0.51170001,3701.4,3701.3,6.87737379]
[1754340665174,0.51170001,3701.4,3701.3,11.05737379]
[1754340665499,1e-08,3701.4,3701.3,11.05737379]
[1754340666335,1e-08,3701.4,3701.3,11.87387379]
[1754340667301,1e-08,3701.4,3701.3,7.01177379]
[1754340667504,1e-08,3701.4,3701.3,11.19077379]
[1754340667901,1e-08,3701.4,3701.3,11.87287379]
[1754340668105,1e-08,3701.5,3701.4,5.70168044]
[1754340668274,1e-08,3701.5,3701.4,7.72931851]
[1754340668474,1e-08,3701.5,3701.4,8.41141851]
[1754340669499,1e-08,3701.5,3701.4,11.90831851]
[1754340669818,1e-08,3701.5,3701.4,12.59041851]
[1754340670457,1e-08,3701.5,3701.4,12.72481851]
[1754340672220,1e-08,3701.5,3701.4,7.86371851]
[1754340672423,1e-08,3701.5,3701.4,12.04071851]
[1754340672930,1e-08,3701.5,3701.4,12.34431851]
[1754340673126,1e-08,3701.5,3701.4,12.04071851]
[1754340673437,1e-08,3701.5,3701.4,7.86371851]
[1754340673641,0.51170001,3701.5,3701.4,12.04071851]
[1754340674055,0.94780001,3701.5,3701.4,7.72931851]
[1754340674257,0.94780001,3701.5,3701.4,9.87868044]
[1754340674757,0.94780001,3701.5,3701.4,5.70168044]
[1754340675051,0.94780001,3701.5,3701.4,9.87868044]
[1754340675254,0.94780001,3701.5,3701.4,2.70168044]
[1754340675549,1e-08,3701.5,3701.4,6.87868044]
[1754340675753,1e-08,3701.5,3701.4,7.83877303]
[1754340676117,1e-08,3701.5,3701.4,11.14237303]
[1754340676720,1e-08,3701.5,3701.4,11.65527303]
[1754340677055,1e-08,3701.5,3701.4,10.97217303]
[1754340677248,0.49930001,3701.5,3701.4,10.97217303]
[1754340678339,1e-08,3701.5,3701.4,10.97217303]
[1754340678544,1e-08,3701.5,3701.4,11.65427303]
[1754340678775,1e-08,3701.7,3701.6,2.70153447]
[1754340679085,1e-08,3701.7,3701.6,25.43011058]
[1754340679291,1e-08,3701.7,3701.6,26.22613324]
[1754340680286,0.002,3702.3,3702.1,5.7011696]
[1754340680593,0.002,3702.3,3702.2,23.52348169]
[1754340680893,0.002,3702.3,3702.2,25.4101084]
[1754340681255,1e-08,3702.3,3702.2,25.4101084]
[1754340681654,1e-08,3702.3,3702.2,25.9601084]
[1754340682275,1e-08,3702.3,3702.2,25.8257084]
[1754340682481,1e-08,3702.3,3702.2,25.9601084]
[1754340682665,1e-08,3702.3,3702.2,25.2780084]
[1754340684171,1e-08,3702.3,3702.2,21.1020084]
[1754340684377,1e-08,3702.3,3702.2,25.2770084]
[1754340685294,0.4628,3703.0,3702.2,25.2770084]
[1754340685295,0.60372643,3705.3,3705.2,2.69890964]
[1754340685798,0.60372643,3705.3,3705.2,2.90610247]
[1754340685799,0.4628,3705.3,3705.2,2.90610247]
[1754340686009,0.9621,3705.3,3705.2,7.08010247]
[1754340687394,0.9621,3705.3,3705.2,2.90610247]
[1754340687807,0.9621,3705.3,3705.2,0.20719283]
[1754340688002,0.9621,3705.3,3705.2,4.38119283]
[1754340688203,0.9621,3705.3,3705.2,4.3761265]
[1754340688407,0.9621,3705.3,3705.2,7.07503614]
[1754340688612,0.4993,3705.3,3705.2,7.07503614]
[1754340689200,0.4993,3705.3,3705.2,2.90103614]
[1754340689402,0.9621,3705.3,3705.2,0.2021265]
[1754340689608,0.9621,3705.3,3705.2,4.173]
[1754340690033,0.9621,3705.3,3705.2,6.87190964]
[1754340690390,0.9641,3705.3,3705.2,6.87190964]
[1754340690918,0.9641,3705.3,3704.4,6.12110473]
[1754340691116,0.9621,3705.2,3705.0,2.69903687]
[1754340691311,0.002,3705.3,3704.8,2.69920102]
[1754340691516,0.002,3705.3,3705.0,0.20112777]
[1754340691817,0.002,3705.3,3704.8,2.69914146]
[1754340691818,2.70085138,3705.3,3704.8,4.173]
[1754340691990,2.70085138,3705.3,3704.4,2.69942203]
[1754340691991,2.6989883,3705.1,3704.4,2.69942203]
[1754340692194,1.32840883,3705.0,3704.5,4.172]
[1754340692386,0.9621,3704.9,3704.4,6.87146809]
[1754340692746,0.9621,3704.8,3704.4,4.172]
[1754340693047,0.9621,3704.7,3704.5,2.69936914]
[1754340693221,0.9621,3704.6,3704.5,2.69936914]
[1754340693734,0.9621,3704.6,3704.4,4.172]
[1754340693930,0.002,3705.3,3704.4,4.172]
[1754340693931,0.4628,3704.5,3704.4,4.172]
[1754340694240,0.9621,3704.5,3704.4,4.37740148]
[1754340694447,0.9621,3704.5,3704.4,0.20540148]
[1754340694601,1.32823093,3704.5,3704.4,0.20540148]
[1754340694946,0.9621,3704.5,3704.0,8.9543743]
[1754340695094,0.9621,3704.4,3704.0,8.9543743]
[1754340695297,2.69968651,3704.2,3704.0,8.75168694]
[1754340695526,0.9621,3704.1,3704.0,8.75168694]
[1754340696460,0.9621,3704.1,3704.0,8.95370576]
[1754340696638,0.9621,3704.5,3704.0,10.26627634]
[1754340696928,0.1344,3704.2,3704.1,2.69965105]
[1754340697454,4.172,3704.8,3704.0,15.8254818]
[1754340697455,0.1344,3704.4,3704.0,15.8254818]
[1754340697604,0.9621,3704.2,3704.1,6.87171113]
[1754340697822,1.0965,3704.2,3704.0,8.95370576]
[1754340698055,0.9621,3704.1,3704.0,11.65347593]
[1754340698254,0.9621,3704.1,3704.0,8.95370576]
[1754340699121,1.34170947,3704.1,3704.0,8.95370576]
[1754340699816,4.0414206,3704.1,3704.0,8.75168694]
[1754340700117,1.34170947,3704.1,3704.0,8.75168694]
[1754340701339,0.9621,3704.1,3704.0,8.75168694]
[1754340701541,3.66181113,3704.1,3704.0,8.75168694]
[1754340701769,0.9621,3704.1,3704.0,8.75168694]
[1754340702078,3.66181113,3704.1,3704.0,8.75168694]
[1754340704862,0.9621,3704.1,3704.0,8.75168694]
[1754340705176,2.02886649,3704.1,3704.0,8.75168694]
[1754340708384,1.06676649,3704.1,3704.0,8.75168694]
[1754340708584,4.172,3704.2,3704.0,8.75168694]
[1754340709548,0.4734,3704.1,3704.0,8.75168694]
[1754340709752,0.9333,3704.1,3704.0,8.75168694]
[1754340710311,4.172,3704.2,3704.0,11.4514488]
[1754340710485,4.172,3704.2,3704.0,8.75168694]
[1754340710690,0.9333,3704.1,3704.0,8.75168694]
[1754340710888,0.4734,3704.1,3704.0,8.75168694]
[1754340711089,4.172,3704.2,3704.0,8.75168694]
[1754340711379,4.6454,3704.2,3704.0,8.75168694]
[1754340711642,4.172,3704.2,3704.1,2.69971113]
[1754340712480,4.171,3704.5,3704.1,2.69971113]
[1754340712709,0.1344,3704.1,3704.0,8.75168694]
[1754340712880,0.6078,3704.1,3704.0,8.75168694]
[1754340714283,0.1344,3704.1,3704.0,11.45147095]
[1754340715530,0.1344,3704.1,3704.0,8.75168694]
[1754340716409,1.0677,3704.1,3704.0,8.75168694]
[1754340717007,0.6078,3704.1,3704.0,8.75168694]
[1754340718225,0.1344,3704.1,3704.0,8.75168694]
[1754340718512,0.1344,3704.1,3704.0,11.45147095]
[1754340720426,0.1344,3704.2,3704.0,8.75168694]
[1754340720729,0.9333,3704.1,3704.0,8.75168694]
[1754340721925,8.21448634,3704.1,3703.0,0.001]
[1754340722087,2.70008689,3703.6,3703.0,0.001]
[1754340722511,0.9333,3703.5,3703.0,2.70151084]
[1754340722875,0.9333,3703.4,3703.0,2.70151084]
[1754340723191,0.9333,3703.3,3703.0,2.90151245]
[1754340723380,0.4734,3703.2,3703.0,2.90151245]
[1754340723831,3.66749567,3703.1,3703.0,0.001]
[1754340724012,2.70073189,3702.7,3702.6,0.001]
[1754340724326,6.87073189,3702.7,3702.6,0.001]
[1754340724486,7.80403189,3702.7,3702.6,0.001]
[1754340725423,8.35403189,3702.7,3702.6,0.001]
[1754340728595,5.6533,3702.7,3702.6,0.001]
[1754340729332,6.48868923,3702.7,3702.6,0.001]
[1754340730128,4.171,3702.7,3702.6,0.001]
[1754340732031,4.171,3702.7,3702.6,2.70180483]
[1754340732904,4.171,3702.7,3702.6,0.001]
[1754340734251,3.0,3703.3,3702.6,0.001]
[1754340734453,4.171,3703.2,3702.7,2.70070949]
[1754340734760,4.171,3703.1,3702.8,2.70065896]
[1754340736026,4.171,3703.1,3702.9,2.70058545]
[1754340736712,0.1344,3702.9,3702.6,0.3795]
[1754340736914,5.12085823,3702.8,3702.6,0.001]
[1754340737118,2.70073189,3702.7,3702.6,0.001]
[1754340737317,0.4703,3702.7,3702.6,0.001]
[1754340737518,0.9161,3702.7,3702.6,0.001]
[1754340738663,3.61683189,3702.7,3702.6,0.001]
[1754340738823,4.71342821,3702.7,3702.6,0.001]
[1754340739164,4.74718735,3702.7,3702.6,0.001]
[1754340739930,0.4458,3703.2,3702.6,0.001]
[1754340740155,3.0,3703.0,3702.6,0.001]
[1754340740375,4.171,3703.1,3702.6,0.001]